bitfinex-derivatives/quotes_SOLF0:USTF0_20240823
["timestamp","ask_amount","ask_price","bid_price","bid_amount"]
[1724380747358,0.0529595,145.03,145.02,3.447]
[1724380748349,10.8257,145.08,145.04,3.4464]
[1724380748550,3.4457,145.08,145.03,1.2642]
[1724380748951,3.4457,145.08,145.04,3.4465]
[1724380749357,0.04779946,145.07,145.05,0.0529595]
[1724380753557,0.04779946,145.07,145.06,3.4461]
[1724380754765,0.04779946,145.07,145.05,3.4991595]
[1724380755359,7.42779946,145.07,145.05,3.4991595]
[1724380756855,0.04779946,145.07,145.05,3.4991595]
[1724380758357,0.04779946,145.07,145.06,3.4461]
[1724380761571,3.49379946,145.07,145.05,0.0529595]
[1724380762170,0.04779946,145.07,145.05,0.0529595]
[1724380762570,0.04779946,145.07,145.05,3.4991595]
[1724380764271,3.49369946,145.07,145.05,3.4991595]
[1724380765566,10.87369946,145.07,145.05,3.4991595]
[1724380765760,10.87369946,145.07,145.05,0.0529595]
[1724380765965,3.4461,145.06,145.05,0.0529595]
[1724380784283,10.8261,145.06,145.05,0.0529595]
[1724380788885,3.4461,145.06,145.05,0.0529595]
[1724380789082,10.8261,145.06,145.05,0.0529595]
[1724380809193,7.38,145.06,144.92,7.38]
[1724380809392,1.3859,145.09,144.87,29.52]
[1724380809393,7.38,144.96,144.93,14.7017472]
[1724380809596,7.38,144.96,144.91,1.3856]
[1724380809597,7.38,144.96,144.94,5.37370782]
[1724380809800,1.3539,145.04,144.93,6.85432713]
[1724380810101,10.8282,144.98,144.94,3.4488]
[1724380810299,7.38,144.98,144.95,3.995701]
[1724380810495,7.38,144.98,144.95,3.4485]
[1724380810802,3.4478,144.99,144.93,8.6775]
[1724380810999,3.4478,144.99,144.94,14.70726921]
[1724380811000,0.05003409,144.97,144.94,14.70726921]
[1724380811204,0.05003409,144.97,144.95,8.82406439]
[1724380811391,0.05003409,144.97,144.95,3.4486]
[1724380812098,7.43003409,144.97,144.95,3.4486]
[1724380813196,7.43003409,144.97,144.94,3.4489]
[1724380816601,0.05003409,144.97,144.93,2.6898]
[1724380817098,0.05003409,144.97,144.95,3.4485]
[1724380819309,0.05003409,144.97,144.96,3.4485]
[1724380819900,3.4487,144.96,144.93,1.2975]
[1724380820210,0.05003409,144.97,144.93,1.2975]
[1724380820399,0.05003409,144.97,144.95,3.4487]
[1724380820908,0.05003409,144.97,144.94,3.4488]
[1724380823205,0.05003409,144.97,144.95,3.4486]
[1724380824503,0.05003409,144.97,144.96,3.4485]
[1724380825314,1.3065,145.09,144.96,7.38]
[1724380825504,7.38,145.03,144.96,7.38]
[1724380826007,3.4473,145.02,144.98,3.448]
[1724380826208,0.04557493,145.01,144.99,0.04430756]
[1724380827414,0.04557493,145.01,144.99,3.49200756]
[1724380828117,0.04557493,145.01,145.0,3.4475]
[1724380829111,3.4465,145.05,145.01,3.4471]
[1724380830017,3.49296857,145.04,145.02,0.05051634]
[1724380830913,3.4468,145.03,145.02,0.05051634]
[1724380839423,10.8268,145.03,145.02,0.05051634]
[1724380845229,10.87306857,145.04,145.02,0.05051634]
[1724380847623,10.8268,145.03,145.01,3.4473]
[1724380847925,0.04636857,145.04,144.93,8.7696]
[1724380847926,7.38,145.02,144.93,8.7696]
[1724380848224,3.4485,144.96,144.93,4.8386]
[1724380848425,7.38,144.96,144.94,5.37755671]
[1724380848623,7.38,144.96,144.93,1.3896]
[1724380848930,7.38,144.96,144.94,0.04429623]
[1724380848931,10.87754319,144.96,144.94,0.04429623]
[1724380849127,7.42894319,144.96,144.94,0.04429623]
[1724380849327,0.04894319,144.96,144.94,0.04429623]
[1724380849634,0.04894319,144.96,144.94,3.49319623]
[1724380852729,0.04894319,144.96,144.95,3.4487]
[1724380855532,0.04894319,144.96,144.94,3.49299623]
[1724380869940,7.38,144.95,144.88,1.2697]
[1724380870139,7.38,144.93,144.88,1.2697]
[1724380870332,7.38,144.93,144.89,1.37996538]
[1724380870538,3.4495,144.92,144.9,5.38668677]
[1724380870840,3.49579153,144.92,144.89,3.45]
[1724380871237,0.04629153,144.92,144.9,3.4498]
[1724380871437,0.04629153,144.92,144.88,8.6497]
[1724380871645,0.04629153,144.92,144.89,14.74693161]
[1724380871847,0.04629153,144.92,144.88,8.6497]
[1724380871848,0.04629153,144.92,144.9,5.38739772]
[1724380872039,0.04629153,144.92,144.9,3.4497]
[1724380872538,0.04629153,144.92,144.91,3.4497]
[1724380872746,3.4489,144.95,144.91,3.4497]
[1724380872747,7.38,144.98,144.91,12.76694221]
[1724380872939,7.38,144.98,144.92,4.00708899]
[1724380873139,7.38,144.98,144.91,7.38]
[1724380873140,3.4484,144.97,144.93,3.449]
[1724380873336,7.38,144.98,144.93,3.449]
[1724380873935,0.04488223,144.97,144.94,0.04708798]
[1724380874138,3.4485,144.96,144.94,0.04708798]
[1724380878542,3.49318223,144.97,144.94,3.49598798]
[1724380883749,3.49318223,144.97,144.95,3.4487]
[1724380885842,0.04488223,144.97,144.95,3.4487]
[1724380888653,0.04488223,144.97,144.94,0.04708798]
[1724380888654,3.49318223,144.97,144.94,3.49588798]
[1724380894456,3.49318223,144.97,144.95,3.4487]
[1724380901566,0.04488223,144.97,144.96,3.4485]
[1724380901972,0.04488223,144.97,144.96,8.83120935]
[1724380904879,0.04488223,144.97,144.96,7.45175449]
[1724380905066,0.04488223,144.97,144.96,8.8311982]
[1724380905670,0.04488223,144.97,144.96,3.4485]
[1724380905869,0.04488223,144.97,144.96,8.83105625]
[1724380908174,0.04488223,144.97,144.96,18.17881712]
[1724380908565,0.04488223,144.97,144.96,4.82791414]
[1724380908771,0.04488223,144.97,144.96,18.17854855]
[1724380908969,0.04488223,144.97,144.96,15.69532405]
[1724380909472,0.04488223,144.97,144.96,18.17856266]
[1724380910577,0.04488223,144.97,144.96,25.55856266]
[1724380912069,27.58,145.04,145.01,3.4472]
[1724380912477,31.0267,145.04,145.01,3.4472]
[1724380913176,31.0742475,145.04,145.01,3.49498449]
[1724380913377,38.4542475,145.04,145.01,3.49498449]
[1724380914976,10.8742475,145.04,145.01,3.49498449]
[1724380915975,3.4468,145.03,145.01,3.49498449]
[1724380916175,7.4275475,145.04,145.01,3.49498449]
[1724380916577,10.8742475,145.04,145.01,3.49498449]
[1724380917478,0.0475475,145.04,145.02,3.447]
[1724380919383,3.4941475,145.04,145.02,3.447]
[1724380921789,3.4941475,145.04,145.01,0.04778449]
[1724380921790,3.447,145.02,145.01,0.04778449]
[1724380921976,10.827,145.02,145.01,0.04778449]
[1724380926285,3.447,145.02,145.01,0.04778449]
[1724380926682,3.447,145.03,145.01,0.04778449]
[1724380928886,0.0475475,145.04,145.01,0.04778449]
[1724380929893,0.0475475,145.04,145.02,3.4469]
[1724380936298,0.0475475,145.04,145.03,3.4468]
[1724380937098,0.0475475,145.04,145.02,3.447]
[1724380938801,0.0475475,145.04,145.03,3.4468]
[1724380950806,0.0475475,145.04,145.02,3.4469]
[1724380953814,0.0475475,145.04,145.01,0.04778449]
[1724380953815,0.0475475,145.04,145.03,3.4468]
[1724380956310,0.0475475,145.04,145.03,10.8268]
[1724380958017,0.0475475,145.04,145.03,3.4468]
[1724380965618,0.0475475,145.04,145.01,7.42778449]
[1724380965619,0.0475475,145.04,145.01,0.04778449]
[1724380965814,7.4275475,145.04,145.01,0.04778449]
[1724380966220,10.8742475,145.04,145.01,3.49488449]
[1724380967915,3.4942475,145.04,145.01,3.49488449]
[1724380971922,3.447,145.03,145.01,0.04778449]
[1724380972623,3.447,145.03,145.01,3.49508449]
[1724380973122,3.447,145.03,145.01,0.04778449]
[1724380974824,3.447,145.02,145.01,0.04778449]
[1724380975027,10.827,145.02,145.01,0.04778449]
[1724380975330,3.447,145.02,145.01,0.04778449]
[1724380986234,3.4469,145.03,145.01,0.04778449]
[1724380993427,0.0475475,145.04,145.01,0.04778449]
[1724380994437,3.4941475,145.04,145.02,3.447]
[1724380996143,3.4468,145.03,145.01,3.49498449]
[1724380999842,10.8742475,145.04,145.01,3.49498449]
[1724381018452,10.8742475,145.04,145.02,3.447]
[1724381018661,0.0475475,145.04,145.01,0.04778449]
[1724381019450,0.0475475,145.04,145.03,3.4468]
[1724381022051,27.56,145.11,145.03,7.38]
[1724381022351,27.56,145.11,145.08,7.38]
[1724381022563,3.4444,145.13,145.09,10.8253]
[1724381023151,0.0438768,145.12,145.1,3.49297071]
[1724381023656,0.0438768,145.12,145.1,0.04787071]
[1724381025863,7.38,145.11,145.1,0.04787071]
[1724381026064,7.38,145.11,145.04,1.2662]
[1724381026360,10.8259,145.07,145.02,2.7016]
[1724381026562,10.8259,145.07,145.03,8.82206836]
[1724381026753,10.8259,145.07,145.02,1.3134]
[1724381026959,10.8259,145.07,145.03,5.37543722]
[1724381027158,0.04993383,145.06,145.04,0.05282145]
[1724381029658,7.42993383,145.06,145.04,0.05282145]
[1724381030760,10.87613383,145.06,145.04,0.05282145]
[1724381031159,3.49613383,145.06,145.04,0.05282145]
[1724381031361,10.87613383,145.06,145.04,0.05282145]
[1724381033871,7.42993383,145.06,145.04,3.49932145]
[1724381035971,10.87603383,145.06,145.04,0.05282145]
[1724381036168,0.04993383,145.06,145.04,0.05282145]
[1724381037370,0.04993383,145.06,145.04,3.49932145]
[1724381042770,0.04993383,145.06,145.05,3.4463]
[1724381046174,0.04993383,145.06,145.04,0.05282145]
[1724381046384,7.38,145.05,145.04,0.05282145]
[1724381046883,10.8263,145.05,145.04,0.05282145]
[1724381080396,3.4469,145.03,144.99,1.3408]
[1724381080600,10.8269,145.03,145.0,5.37847636]
[1724381080795,10.8269,145.03,144.99,1.3408]
[1724381080996,10.8269,145.03,145.0,8.82578706]
[1724381081196,10.8269,145.03,145.0,3.4473]
[1724381081497,10.87615991,145.03,145.0,3.48612555]
[1724381082289,10.87615991,145.03,145.01,3.99950669]
[1724381082602,10.87615991,145.03,145.0,3.48612555]
[1724381082802,3.49615991,145.03,145.01,7.44680259]
[1724381082994,3.49615991,145.03,145.01,3.4473]
[1724381083895,0.04925991,145.03,145.01,3.4473]
[1724381085800,0.04925991,145.03,145.02,3.447]
[1724381092713,7.42925991,145.03,145.02,3.447]
[1724381094411,7.42925991,145.03,145.02,8.8255004]
[1724381095014,7.42925991,145.03,145.02,3.447]
[1724381095313,7.42925991,145.03,145.02,8.82548173]
[1724381097514,7.42925991,145.03,145.02,5.37848173]
[1724381098325,7.42925991,145.03,145.01,3.4472]
[1724381098523,0.04925991,145.03,145.02,5.37851405]
[1724381098716,7.42925991,145.03,145.02,5.37851405]
[1724381099613,7.42925991,145.03,145.02,5.37766653]
[1724381100426,0.04925991,145.03,145.02,8.82466653]
[1724381100623,0.04925991,145.03,145.02,7.44565754]
[1724381100817,0.04925991,145.03,145.02,4.82600595]
[1724381101023,0.04925991,145.03,145.02,8.8246576]
[1724381102027,0.04925991,145.03,145.02,8.82465028]
[1724381102325,7.42925991,145.03,145.02,5.37765028]
[1724381102929,7.42925991,145.03,145.02,5.37835906]
[1724381104229,7.42925991,145.03,145.01,3.4472]
[1724381104426,7.42925991,145.03,145.02,1.37899895]
[1724381104730,7.42925991,145.03,145.02,5.37847444]
[1724381105821,7.42925991,145.03,145.01,3.4472]
[1724381106021,7.42925991,145.03,145.02,1.37900708]
[1724381106231,7.42925991,145.03,145.02,5.37862202]
[1724381107434,7.42925991,145.03,145.02,3.99961494]
[1724381107732,7.42925991,145.03,145.02,5.3786217]
[1724381107920,7.42925991,145.03,145.02,1.37900676]
[1724381108120,7.42925991,145.03,145.02,5.37848481]
[1724381108725,10.87605991,145.03,145.02,5.37848481]
[1724381109528,7.42925991,145.03,145.02,5.37848481]
[1724381110635,7.42925991,145.03,145.02,3.99947805]
[1724381110839,7.42925991,145.03,145.02,5.37849315]
[1724381112336,0.04925991,145.03,145.02,8.82549315]
[1724381112526,56.37692911,145.1,145.02,14.71716234]
[1724381112727,7.38,145.1,145.03,22.09716234]
[1724381113035,1.341,145.13,145.05,7.38]
[1724381113246,1.3828,145.18,145.11,3.4448]
[1724381113247,2.6747,145.18,145.11,3.4448]
[1724381113427,10.8242,145.15,145.11,3.4448]
[1724381113629,0.0454818,145.14,145.12,0.04783203]
[1724381114025,3.4896818,145.14,145.12,0.04783203]
[1724381114226,10.8696818,145.14,145.12,0.04783203]
[1724381114934,7.38,145.13,145.12,0.04783203]
[1724381116232,10.8244,145.13,145.12,0.04783203]
[1724381117543,7.38,145.13,145.12,0.04783203]
[1724381118740,10.8244,145.13,145.12,0.04783203]
[1724381119036,7.38,145.13,145.08,3.4456]
[1724381119239,7.38,145.09,145.08,3.4456]
[1724381121139,0.05052495,145.1,145.08,3.4456]
[1724381121334,0.05052495,145.1,145.09,3.4454]
[1724381129336,0.05052495,145.1,145.09,10.8254]
[1724381129535,7.38,145.16,145.09,7.38]
[1724381129841,3.4441,145.15,145.1,7.38]
[1724381130340,10.8241,145.15,145.1,7.38]
[1724381130642,0.04400264,145.14,145.12,3.4446]
[1724381135545,0.04400264,145.14,145.13,3.4444]
[1724381136255,0.04400264,145.14,145.13,10.8244]
[1724381138549,1.3079,145.23,145.08,3.9542]
[1724381138550,27.56,145.32,145.16,36.9]
[1724381138749,27.56,145.32,145.08,3.9542]
[1724381138750,7.38,145.25,145.18,7.38]
[1724381139254,10.8218,145.25,145.18,7.38]
[1724381139449,0.04712605,145.23,145.2,0.04841785]
[1724381139650,0.04712605,145.23,145.2,3.49111785]
[1724381140849,3.48932605,145.23,145.2,0.04841785]
[1724381143250,3.48932605,145.23,145.2,3.49121785]
[1724381145156,7.38,145.22,145.2,0.04841785]
[1724381145353,7.38,145.21,145.1,6.8901]
[1724381145551,7.38,145.18,145.12,7.38]
[1724381145756,10.8232,145.18,145.15,3.4439]
[1724381146457,10.8232,145.18,145.16,3.4437]
[1724381146458,7.42964539,145.18,145.16,3.4437]
[1724381146957,7.42964539,145.18,145.15,0.04774969]
[1724381147162,7.38,145.16,145.15,0.04774969]
[1724381149850,5.16686952,145.36,145.15,7.42774969]
[1724381150055,7.38,145.25,145.19,7.38]
[1724381150557,3.4422,145.23,145.19,3.4428]
[1724381150960,0.0446766,145.22,145.2,0.05044629]
[1724381152156,0.0446766,145.22,145.2,3.49314629]
[1724381154762,0.0446766,145.22,145.21,3.4425]
[1724381182796,0.0446766,145.22,145.2,3.49304629]
[1724381182996,7.4446766,145.22,145.2,3.49304629]
[1724381185890,3.4425,145.21,145.2,0.05044629]
[1724381186090,12.2328,145.21,145.14,7.4]
[1724381186291,7.4,145.18,145.07,0.4838]
[1724381186487,1.3903,145.21,145.1,7.4]
[1724381186488,10.8439,145.16,145.1,7.4]
[1724381186692,10.8439,145.16,145.07,0.4838]
[1724381186891,7.4,145.15,145.08,5.3687948]
[1724381187095,7.45050079,145.13,145.1,0.0529598]
[1724381187289,7.4,145.12,145.1,0.0529598]
[1724381187897,7.4,145.11,145.1,0.0529598]
[1724381188293,0.05050079,145.13,145.1,0.0529598]
[1724381188495,7.4,145.12,145.1,0.0529598]
[1724381189005,0.05050079,145.13,145.1,0.0529598]
[1724381189702,7.45050079,145.13,145.1,0.0529598]
[1724381191296,10.89500079,145.13,145.1,0.0529598]
[1724381191601,7.4,145.12,145.08,3.4456]
[1724381191997,7.4,145.12,145.06,7.4]
[1724381192299,7.4,145.12,145.09,3.4453]
[1724381192500,0.04601912,145.1,145.09,3.4453]
[1724381193000,0.04601912,145.1,145.08,3.47820247]
[1724381193202,0.04601912,145.1,145.08,0.03260247]
[1724381194291,0.04601912,145.1,145.09,3.4454]
[1724381195004,0.04601912,145.1,145.08,3.47810247]
[1724381195201,7.4,145.09,145.08,0.03260247]
[1724381195404,7.4,145.09,145.02,7.4]
[1724381195703,10.8455,145.09,145.02,7.4]
[1724381196405,0.04945048,145.07,145.02,7.4]
[1724381197000,0.04945048,145.07,145.05,3.4462]
[1724381200112,0.04945048,145.07,145.04,3.4465]
[1724381200915,7.44945048,145.07,145.04,3.4465]
[1724381201215,7.4,145.06,145.03,3.4467]
[1724381202416,10.8462,145.06,145.02,3.4469]
[1724381203013,10.8462,145.06,145.03,3.4468]
[1724381203809,7.4,145.05,145.03,3.4468]
[1724381204716,10.8464,145.05,145.02,3.447]
[1724381204914,10.8930605,145.05,145.02,3.447]
[1724381206517,3.4930605,145.05,145.02,3.447]
[1724381207315,0.0466605,145.05,145.02,3.447]
[1724381209319,0.0466605,145.05,145.03,3.4468]
[1724381210417,7.4,145.04,145.03,3.4468]
[1724381211417,7.4,145.04,144.94,0.5359]
[1724381211619,0.04752506,145.0,144.97,7.4]
[1724381211917,0.05046855,145.0,144.99,3.4478]
[1724381221132,0.05046855,145.0,144.92,8.2245]
[1724381221133,0.05046855,145.0,144.98,3.4479]
[1724381221433,7.4,144.99,144.98,3.4479]
[1724381221926,0.05046855,145.0,144.98,3.4479]
[1724381222127,0.05046855,145.0,144.99,3.4478]
[1724381225529,0.05046855,145.0,144.98,3.448]
[1724381225733,7.4,144.99,144.91,7.4]
[1724381225935,0.05282596,144.96,144.91,7.4]
[1724381226130,0.05282596,144.96,144.95,3.4487]
[1724381228634,7.45282596,144.96,144.88,2.7408]
[1724381228835,7.45282596,144.96,144.89,7.4]
[1724381229337,7.45282596,144.96,144.94,3.4487]
[1724381229832,7.4,144.95,144.94,3.4487]
[1724381230433,7.4,144.95,144.93,3.4491]
[1724381231335,7.4,144.95,144.92,3.4494]
[1724381231536,7.4,144.93,144.85,0.0877]
[1724381231734,0.05055912,144.9,144.86,7.4]
[1724381232041,0.05055912,144.9,144.89,3.4501]
[1724381235836,10.90045912,144.9,144.83,1.3432]
[1724381236031,0.05055912,144.9,144.83,8.7432]
[1724381236237,0.05055912,144.9,144.85,7.4]
[1724381236937,0.05055912,144.9,144.89,3.4501]
[1724381237132,0.05055912,144.9,144.85,7.4]
[1724381237337,7.45055912,144.9,144.85,7.4]
[1724381239335,7.45055912,144.9,144.88,3.4502]
[1724381242844,7.45055912,144.9,144.83,1.3432]
[1724381242845,7.45055912,144.9,144.87,3.4504]
[1724381246536,7.4,144.88,144.83,1.3432]
[1724381246940,0.04798927,144.87,144.83,1.3432]
[1724381247242,0.04798927,144.87,144.86,3.4508]
[1724381260141,7.44798927,144.87,144.84,3.4511]
[1724381260349,7.44798927,144.87,144.82,66.97529556]
[1724381260546,0.04798927,144.87,144.82,66.97529556]
[1724381260941,0.04798927,144.87,144.86,3.4508]
[1724381262252,7.44798927,144.87,144.79,1.2957]
[1724381262450,7.4,144.84,144.79,1.2957]
[1724381262645,0.04474248,144.83,144.79,1.2957]
[1724381263048,0.04474248,144.83,144.82,3.4518]
[1724381265851,7.44474248,144.83,144.67,82.20464974]
[1724381266151,0.04601675,144.76,144.75,7.4]
[1724381266354,0.04949166,144.77,144.76,3.4532]
[1724381266554,0.05007716,144.78,144.77,7.4]
[1724381266756,0.04704994,144.79,144.77,7.4]
[1724381266955,10.8513,144.84,144.79,3.4525]
[1724381267151,0.05139797,144.83,144.79,3.4525]
[1724381267956,7.45139797,144.83,144.79,3.4525]
[1724381268351,10.90299797,144.83,144.79,3.4525]
[1724381270355,7.4,144.8,144.71,7.4]
[1724381270558,0.04924659,144.77,144.73,7.4]
[1724381270754,0.04924659,144.77,144.69,29.6]
[1724381270755,7.4,144.81,144.74,7.4]
[1724381270958,7.4,144.81,144.77,3.4528]
[1724381271160,0.04811745,144.79,144.77,3.4528]
[1724381271358,0.04830984,144.79,144.77,3.4528]
[1724381275763,0.04830984,144.79,144.76,3.4531]
[1724381277257,0.04830984,144.79,144.77,3.4529]
[1724381277462,7.4,144.8,144.77,3.4529]
[1724381277669,0.04390739,144.79,144.77,3.4529]
[1724381278165,0.04390739,144.79,144.78,3.4528]
[1724381279058,0.04390739,144.79,144.77,3.4529]
[1724381280362,0.04390739,144.79,144.74,7.4]
[1724381280667,0.04390739,144.79,144.78,3.4528]
[1724381281862,0.04390739,144.79,144.69,29.6]
[1724381282068,0.05297073,144.75,144.74,7.4]
[1724381282269,0.05214409,144.76,144.75,3.4535]
[1724381282569,0.05263753,144.77,144.74,7.4]
[1724381282762,0.04509325,144.77,144.74,7.4]
[1724381284265,0.04509325,144.77,144.76,3.4532]
[1724381285464,3.4518,144.82,144.75,7.4]
[1724381285766,3.4518,144.82,144.78,7.4]
[1724381285960,3.4518,144.82,144.78,10.8526]
[1724381286270,0.04660289,144.81,144.79,0.04509325]
[1724381286759,3.49870289,144.81,144.79,0.04509325]
[1724381289363,3.4523,144.8,144.79,0.04509325]
[1724381291565,7.44660289,144.81,144.71,1.2893]
[1724381291766,1.289,144.82,144.71,8.6893]
[1724381291961,3.4529,144.78,144.75,3.4534]
[1724381292469,3.49720673,144.78,144.75,3.4534]
[1724381293672,0.04430673,144.78,144.77,3.453]
[1724381301969,0.04430673,144.78,144.77,10.853]
[1724381302967,0.04430673,144.78,144.77,3.453]
[1724381303478,0.04430673,144.78,144.73,7.4]
[1724381304080,0.04430673,144.78,144.76,3.4531]
[1724381307674,0.04430673,144.78,144.75,3.4534]
[1724381308082,0.04430673,144.78,144.76,3.4532]
[1724381308378,0.04430673,144.78,144.75,7.4]
[1724381310380,0.04430673,144.78,144.77,3.453]
[1724381310580,0.04430673,144.78,144.75,7.4]
[1724381310776,0.04430673,144.78,144.74,7.4]
[1724381312084,0.04430673,144.78,144.75,3.4534]
[1724381314184,0.04430673,144.78,144.76,3.4532]
[1724381316586,0.04430673,144.78,144.77,3.453]
[1724381321187,0.04430673,144.78,144.77,4.83409453]
[1724381321892,0.04430673,144.78,144.77,3.453]
[1724381323591,0.04430673,144.78,144.77,4.83411213]
[1724381324192,0.04430673,144.78,144.77,3.453]
[1724381324493,0.04430673,144.78,144.77,4.83411925]
[1724381325583,0.04430673,144.78,144.77,3.453]
[1724381326388,0.04430673,144.78,144.77,4.83410242]
[1724381327188,0.04430673,144.78,144.77,7.32675676]
[1724381327692,0.04430673,144.78,144.77,14.72675676]
[1724381329097,0.04430673,144.78,144.77,10.853]
[1724381329294,0.04430673,144.78,144.77,14.72658422]
[1724381331796,30.3884,144.85,144.81,3.452]
[1724381332003,11.81290927,144.95,144.82,1.38108663]
[1724381332300,7.4,144.89,144.82,7.4]
[1724381332499,3.4506,144.87,144.83,3.4515]
[1724381332691,3.4506,144.87,144.83,4.8322433]
[1724381332892,0.04377749,144.86,144.84,0.04430673]
[1724381333204,3.49457749,144.86,144.85,1.3807433]
[1724381333502,7.44377749,144.86,144.84,0.04430673]
[1724381333708,10.8511,144.85,144.84,0.04430673]
[1724381334291,7.4,144.85,144.84,0.04430673]
[1724381334491,7.4,144.85,144.84,1.42506113]
[1724381335301,10.8511,144.85,144.84,1.42506113]
[1724381335499,10.8511,144.85,144.84,0.04430673]
[1724381335898,10.8511,144.85,144.84,1.42508282]
[1724381336494,10.89467749,144.86,144.84,1.42508282]
[1724381336699,10.89467749,144.86,144.84,0.04430673]
[1724381338410,3.49467749,144.86,144.84,0.04430673]
[1724381340119,10.8511,144.85,144.84,0.04430673]
[1724381344719,3.4511,144.85,144.84,0.04430673]
[1724381350815,3.4515,144.84,144.81,3.4519]
[1724381351022,7.4,144.82,144.76,7.4]
[1724381351222,7.4,144.82,144.77,3.87739762]
[1724381351421,10.852,144.82,144.76,7.4]
[1724381351620,10.852,144.82,144.79,3.4524]
[1724381351927,10.90052824,144.82,144.8,1.38101493]
[1724381352220,10.90052824,144.82,144.79,3.4524]
[1724381352524,10.90052824,144.82,144.8,1.38101493]
[1724381352720,10.90052824,144.82,144.79,3.4524]
[1724381352921,10.90052824,144.82,144.8,1.38101493]
[1724381353118,3.50052824,144.82,144.79,3.4524]
[1724381353319,3.50052824,144.82,144.8,1.38095217]
[1724381353521,3.50052824,144.82,144.81,1.38094288]
[1724381354724,3.50052824,144.82,144.81,1.38093802]
[1724381355620,3.50052824,144.82,144.79,3.4524]
[1724381355817,3.50052824,144.82,144.8,1.38096172]
[1724381356022,3.50052824,144.82,144.79,3.4524]
[1724381356224,3.50052824,144.82,144.8,1.38096172]
[1724381356425,3.50052824,144.82,144.8,3.4522]
[1724381356622,3.50052824,144.82,144.81,1.38094686]
[1724381356829,3.50052824,144.82,144.8,3.4522]
[1724381357024,0.04852824,144.82,144.81,4.83294653]
[1724381361230,0.04852824,144.82,144.81,3.452]
[1724381361422,0.04852824,144.82,144.81,4.83294395]
[1724381362732,0.04852824,144.82,144.81,4.83293651]
[1724381363931,0.04852824,144.82,144.81,1.38093651]
[1724381365034,0.04852824,144.82,144.8,3.4521]
[1724381365231,0.04852824,144.82,144.81,4.8329467]
[1724381367731,0.04852824,144.82,144.81,3.452]
[1724381367936,0.04852824,144.82,144.81,4.83295211]
[1724381368182,0.04852824,144.82,144.81,3.452]
[1724381368433,0.04852824,144.82,144.81,4.83295211]
[1724381370035,0.04852824,144.82,144.81,1.38095211]
[1724381371034,3.50032824,144.82,144.81,1.38095211]
[1724381371536,3.50032824,144.82,144.81,1.38094532]
[1724381373938,3.50032824,144.82,144.79,3.4524]
[1724381374133,3.50032824,144.82,144.8,1.38101311]
[1724381374338,3.50032824,144.82,144.81,1.38101311]
[1724381375441,3.50032824,144.82,144.79,3.4524]
[1724381375638,3.50032824,144.82,144.81,1.38097508]
[1724381376432,0.04852824,144.82,144.81,1.38097508]
[1724381376739,0.04852824,144.82,144.81,4.83297508]
[1724381377039,0.04852824,144.82,144.81,4.83292843]
[1724381377538,0.04852824,144.82,144.81,1.38092843]
[1724381377938,0.04852824,144.82,144.81,3.87550517]
[1724381378128,0.04852824,144.82,144.81,1.38092843]
[1724381378439,0.04852824,144.82,144.8,3.4522]
[1724381378628,0.04852824,144.82,144.81,3.87586397]
[1724381378936,0.04852824,144.82,144.81,1.380879]
[1724381379627,3.50032824,144.82,144.81,1.380879]
[1724381380241,0.04852824,144.82,144.81,1.380879]
[1724381380428,0.04852824,144.82,144.81,4.832879]
[1724381381837,0.04852824,144.82,144.81,3.452]
[1724381382040,0.04852824,144.82,144.81,7.3280487]
[1724381382741,0.04852824,144.82,144.81,3.8760487]
[1724381382939,0.04852824,144.82,144.81,1.38093043]
[1724381383535,0.04852824,144.82,144.8,3.4522]
[1724381383736,0.04852824,144.82,144.81,1.38094467]
[1724381384839,0.04852824,144.82,144.8,3.4522]
[1724381385037,0.04852824,144.82,144.81,1.38094467]
[1724381385541,0.04852824,144.82,144.81,1.38094472]
[1724381386439,3.50032824,144.82,144.81,1.38094472]
[1724381386834,3.50032824,144.82,144.81,3.87545592]
[1724381387939,3.50032824,144.82,144.79,10.8524]
[1724381388134,3.50032824,144.82,144.8,3.87609298]
[1724381388337,3.50032824,144.82,144.81,3.87609298]
[1724381388739,3.4521,144.81,144.79,3.4524]
[1724381388938,0.04852824,144.82,144.8,2.49521599]